bitfinex/quotes_BTCUSD_20241120
["timestamp","ask_amount","ask_price","bid_price","bid_amount"]
[1732125145199,0.01,94167.0,94146.0,0.023]
[1732125145414,0.01,94167.0,94147.0,0.10711512]
[1732125145649,0.01,94167.0,94148.0,0.14911166]
[1732125145881,0.01,94167.0,94150.0,0.123]
[1732125146127,0.01,94167.0,94152.0,0.123]
[1732125146370,0.01,94167.0,94154.0,0.023]
[1732125146832,0.03186951,94175.0,94153.0,0.01336198]
[1732125146833,0.01,94173.0,94156.0,0.123]
[1732125147079,0.03186951,94175.0,94158.0,0.123]
[1732125147322,0.02186951,94175.0,94159.0,0.00106192]
[1732125147537,0.01,94189.0,94160.0,0.123]
[1732125147799,0.01,94189.0,94162.0,0.123]
[1732125148046,0.01,94189.0,94163.0,0.10711512]
[1732125148261,0.07228187,94194.0,94164.0,0.123]
[1732125148478,0.06228187,94194.0,94166.0,0.123]
[1732125148695,0.07228187,94194.0,94167.0,0.10817681]
[1732125148931,0.01,94190.0,94168.0,0.123]
[1732125149157,0.09460015,94194.0,94170.0,0.123]
[1732125149383,0.01,94190.0,94172.0,0.023]
[1732125149609,0.01,94190.0,94175.0,0.023]
[1732125149833,0.01,94190.0,94177.0,0.023]
[1732125150084,0.01,94187.0,94177.0,0.023]
[1732125150309,0.01,94187.0,94174.0,0.1]
[1732125150310,0.01,94187.0,94175.0,0.023]
[1732125150553,0.01,94187.0,94174.0,0.1]
[1732125150554,0.01,94187.0,94177.0,0.023]
[1732125151713,0.08460015,94194.0,94179.0,0.123]
[1732125151914,0.08460015,94194.0,94181.0,0.123]
[1732125152162,0.08460015,94194.0,94179.0,0.123]
[1732125152163,0.08460015,94194.0,94184.0,0.023]
[1732125152409,0.08460015,94194.0,94186.0,0.023]
[1732125153337,0.01,94192.0,94169.0,0.023]
[1732125153570,0.01,94192.0,94171.0,0.123]
[1732125153795,0.01,94192.0,94172.0,0.13460916]
[1732125154013,0.01,94192.0,94173.0,0.123]
[1732125154282,0.01,94192.0,94174.0,0.10711512]
[1732125154527,0.01,94192.0,94175.0,0.123]
[1732125154742,0.01,94192.0,94176.0,0.10711512]
[1732125154987,0.08460015,94194.0,94177.0,0.14717937]
[1732125155198,0.08460015,94194.0,94177.0,0.23117681]
[1732125155425,0.08460015,94194.0,94179.0,0.123]
[1732125155666,0.08460015,94194.0,94182.0,0.023]
[1732125155891,0.08460015,94194.0,94184.0,0.123]
[1732125156111,0.08460015,94194.0,94185.0,0.10711512]
[1732125156380,0.08460015,94194.0,94186.0,0.023]
[1732125158234,0.08460015,94194.0,94185.0,0.10711512]
[1732125159450,0.08460015,94194.0,94184.0,0.1]
[1732125159691,0.01,94192.0,94185.0,0.01146]
[1732125159911,0.01,94192.0,94158.0,0.002]
[1732125159912,0.08460015,94194.0,94171.0,0.02246085]
[1732125160165,0.08460015,94194.0,94159.0,0.00106171]
[1732125160166,0.01,94192.0,94173.0,0.1]
[1732125160381,0.01,94192.0,94175.0,0.1]
[1732125160701,0.01,94192.0,94173.0,0.1]
[1732125160702,0.01,94192.0,94177.0,0.1]
[1732125162229,0.01,94192.0,94177.0,0.10106171]
[1732125162454,0.01,94192.0,94177.0,0.1]
[1732125166826,0.08460015,94194.0,94159.0,0.00852]
[1732125166827,0.01,94184.0,94159.0,0.00852]
[1732125167128,0.01,94184.0,94161.0,0.123]
[1732125167389,0.01,94183.0,94162.0,0.10711512]
[1732125167604,0.01,94183.0,94163.0,0.1]
[1732125167822,0.01,94183.0,94164.0,0.10711512]
[1732125168093,0.01,94183.0,94165.0,0.1]
[1732125168329,0.01,94183.0,94166.0,0.14439689]
[1732125168540,0.01,94183.0,94167.0,0.1]
[1732125168788,0.01,94183.0,94167.0,0.20711512]
[1732125169258,0.01,94183.0,94168.0,0.00106182]
[1732125169510,0.01,94183.0,94167.0,0.20711512]
[1732125169733,0.01,94183.0,94168.0,0.02673969]
[1732125170730,0.0497,94187.0,94168.0,0.02673969]
[1732125170731,0.01,94181.0,94168.0,0.02673969]
[1732125170987,0.0728,94182.0,94147.0,0.033]
[1732125171218,0.0728,94182.0,94155.0,0.023]
[1732125171475,0.0728,94182.0,94156.0,0.10711512]
[1732125171708,0.0728,94182.0,94157.0,0.1]
[1732125171948,0.0728,94182.0,94158.0,0.10711512]
[1732125172196,0.0728,94182.0,94159.0,0.12301151]
[1732125172450,0.0728,94182.0,94161.0,0.1]
[1732125172918,0.09476729,94182.0,94161.0,0.1]
[1732125173155,0.09476729,94182.0,94161.0,0.10106189]
[1732125173394,0.09476729,94182.0,94162.0,0.10711512]
[1732125173634,0.09476729,94182.0,94163.0,0.12187952]
[1732125173871,0.09476729,94182.0,94164.0,0.10711512]
[1732125174101,0.09476729,94182.0,94165.0,0.10106182]
[1732125174330,0.02196729,94182.0,94167.0,0.1]
[1732125174586,0.02196729,94182.0,94168.0,0.14012663]
[1732125174844,0.0497,94187.0,94169.0,0.1]
[1732125175081,0.0497,94187.0,94168.0,0.14012663]
[1732125175082,0.07222547,94187.0,94171.0,0.1]
[1732125175294,0.07222547,94187.0,94171.0,0.20711512]
[1732125175510,0.07222547,94187.0,94172.0,0.00106177]
[1732125175968,0.07222547,94187.0,94171.0,0.20711512]
[1732125176221,0.07222547,94187.0,94172.0,0.02301151]
[1732125177419,0.0198264,94186.0,94172.0,0.02301151]
[1732125177662,0.01982733,94186.0,94172.0,0.02301151]
[1732125177899,0.07222547,94187.0,94172.0,0.02301151]
[1732125177900,0.01982733,94185.0,94172.0,0.02301151]
[1732125178150,0.07222547,94187.0,94172.0,0.02301151]
[1732125178151,0.07222547,94187.0,94173.0,0.02531266]
[1732125178366,0.14328187,94194.0,94173.0,0.02531266]
[1732125178367,0.14328187,94194.0,94174.0,0.123]
[1732125178587,0.14328187,94194.0,94176.0,0.1]
[1732125178805,0.14328187,94194.0,94177.0,0.13011512]
[1732125179024,0.14328187,94194.0,94178.0,0.12301151]
[1732125179254,0.14328187,94194.0,94180.0,0.1]
[1732125179255,0.16507116,94194.0,94180.0,0.1]
[1732125179493,0.16507116,94194.0,94178.0,0.1]
[1732125179494,0.16507116,94194.0,94181.0,0.10711512]
[1732125179794,0.16507116,94194.0,94182.0,0.12301151]
[1732125179962,0.16507116,94194.0,94183.0,0.10711512]
[1732125180227,0.16507116,94194.0,94184.0,0.1]
[1732125180882,0.08407116,94194.0,94184.0,0.10106164]
[1732125181098,0.08407116,94194.0,94185.0,0.02306633]
[1732125181792,0.08407116,94194.0,94186.0,0.10711512]
[1732125182016,0.04699453,94194.0,94186.0,0.10711512]
[1732125183490,0.04699453,94194.0,94167.0,0.023]
[1732125183719,0.04699453,94194.0,94169.0,0.14500913]
[1732125183945,0.04699453,94194.0,94171.0,0.023]
[1732125184193,0.10281451,94193.0,94173.0,0.1]
[1732125184432,0.04699453,94194.0,94139.0,0.01]
[1732125184433,0.17372963,94192.0,94139.0,0.01]
[1732125184683,0.17372963,94192.0,94138.0,0.0768]
[1732125184684,0.0941634,94190.0,94148.0,0.02183148]
[1732125184961,0.10281451,94191.0,94148.0,0.02183148]
[1732125184962,0.0941634,94188.0,94148.0,0.02183148]
[1732125185201,0.20127852,94187.0,94148.0,0.02183148]
[1732125185443,0.01981451,94186.0,94149.0,0.00106193]
[1732125185704,0.0941634,94184.0,94159.0,0.1]
[1732125185948,0.01981451,94183.0,94162.0,0.01017096]
[1732125186237,0.0941634,94182.0,94149.0,0.01106193]
[1732125186492,0.01981451,94183.0,94159.0,0.0973096]
[1732125186493,0.0941634,94177.0,94159.0,0.0973096]
[1732125186703,0.0941634,94177.0,94160.0,0.11684608]
[1732125186925,0.01981451,94176.0,94160.0,0.11790801]
[1732125187167,0.01981451,94175.0,94160.0,0.11684608]
[1732125187403,0.0941634,94177.0,94161.0,0.02258364]
[1732125187404,0.09490714,94177.0,94161.0,0.02258364]
[1732125187659,0.09490714,94174.0,94162.0,0.02367393]
[1732125187872,0.09490714,94173.0,94162.0,0.02367393]
[1732125188595,0.02208838,94177.0,94162.0,0.12367393]
[1732125188596,0.09490714,94169.0,94162.0,0.12367393]
[1732125188835,0.09490714,94169.0,94162.0,0.1]
[1732125189776,0.09490714,94170.0,94162.0,0.1]
[1732125190067,0.09490714,94170.0,94163.0,0.02168461]
[1732125190520,0.0945468,94170.0,94163.0,0.02168461]
[1732125191441,0.14236071,94174.0,94164.0,0.10711512]
[1732125191664,0.13948725,94175.0,94165.0,0.123]
[1732125191899,0.18981428,94181.0,94167.0,0.1]
[1732125192134,0.19066988,94185.0,94167.0,0.1]
[1732125192358,0.19066988,94185.0,94168.0,0.02226794]
[1732125192359,0.0008556,94185.0,94168.0,0.02226794]
[1732125192658,0.01980704,94184.0,94168.0,0.02226794]
[1732125192877,0.01980704,94184.0,94161.0,0.0017112]
[1732125192878,0.50228846,94183.0,94161.0,0.0017112]
[1732125193115,0.45809654,94182.0,94161.0,0.0017112]
[1732125193331,0.01980704,94181.0,94161.0,0.0017112]
[1732125193553,0.10711512,94180.0,94161.0,0.0017112]
[1732125194001,0.01980704,94179.0,94161.0,0.0017112]
[1732125194244,0.12692216,94178.0,94161.0,0.0017112]
[1732125194468,0.09570704,94177.0,94161.0,0.0017112]
[1732125194713,0.12692216,94176.0,94161.0,0.0017112]
[1732125194950,0.01980704,94175.0,94161.0,0.0017112]
[1732125195215,0.22821512,94177.0,94161.0,0.0017112]
[1732125195456,0.1211,94177.0,94161.0,0.0017112]
[1732125197055,0.14296358,94177.0,94161.0,0.0017112]
[1732125197501,0.10711512,94176.0,94161.0,0.0017112]
[1732125197765,0.11290254,94175.0,94161.0,0.0017112]
[1732125197997,0.12691766,94174.0,94161.0,0.0017112]
[1732125198437,0.01980254,94173.0,94161.0,0.0017112]
[1732125198659,0.18981428,94171.0,94161.0,0.0017112]
[1732125198930,0.1326,94169.0,94161.0,0.0017112]
[1732125199143,0.12691766,94168.0,94161.0,0.0017112]
[1732125199393,0.10711512,94168.0,94161.0,0.0017112]
[1732125199611,0.12691766,94168.0,94161.0,0.0017112]
[1732125199832,0.10711512,94168.0,94161.0,0.0017112]
[1732125201056,0.01,94164.0,94161.0,0.0017112]
[1732125201313,0.20214079,94168.0,94113.0,0.14190982]
[1732125201314,0.0865,94155.0,94113.0,0.09460654]
[1732125201591,0.01,94149.0,94114.0,0.01536208]
[1732125201790,0.01,94149.0,94112.0,0.001711]
[1732125201791,0.10711512,94148.0,94112.0,0.10882612]
[1732125202262,0.01,94143.0,94112.0,0.001711]
[1732125202501,0.10711512,94142.0,94112.0,0.001711]
[1732125203175,0.0456,94141.0,94112.0,0.001711]
[1732125203405,0.0813,94139.0,94112.0,0.001711]
[1732125203634,0.10711512,94138.0,94112.0,0.001711]
[1732125204090,0.10711512,94138.0,94114.0,0.0017114]
[1732125205620,0.01,94132.0,94114.0,0.0017114]
[1732125205878,0.1296,94125.0,94114.0,0.0017114]
[1732125206133,0.01,94116.0,94114.0,0.0017114]
[1732125206377,0.11711512,94115.0,94114.0,0.0017114]
[1732125206622,0.24671512,94115.0,94114.0,0.0017114]
[1732125207335,0.23671512,94115.0,94114.0,0.0017114]
[1732125207593,0.1296,94115.0,94114.0,0.0017114]
[1732125209216,0.152244,94115.0,94114.0,0.0017114]
[1732125209714,0.022644,94115.0,94114.0,0.0017114]
[1732125210167,0.076,94128.0,94114.0,0.0017114]
[1732125210403,0.18311512,94128.0,94114.0,0.0017114]
[1732125210860,0.10711512,94127.0,94114.0,0.0017114]
[1732125213571,0.01969018,94126.0,94114.0,0.0017114]
[1732125213798,0.1268053,94125.0,94114.0,0.0017114]
[1732125214026,0.01969018,94124.0,94114.0,0.0017114]
[1732125214255,0.1268053,94123.0,94114.0,0.0017114]
[1732125214484,0.01969018,94122.0,94114.0,0.0017114]
[1732125214725,0.1268053,94121.0,94114.0,0.0017114]
[1732125214959,0.10711512,94121.0,94114.0,0.0017114]
[1732125215689,0.02,94115.0,94114.0,0.0017114]
[1732125215925,0.02,94115.0,94112.0,0.001711]
[1732125215926,0.01,94114.0,94112.0,0.001711]
[1732125216166,0.12681723,94113.0,94112.0,0.001711]
[1732125217360,0.12681723,94113.0,94068.0,0.00277383]
[1732125217361,0.12792846,94113.0,94068.0,0.023]
[1732125217587,0.12792846,94113.0,94067.0,0.1763]
[1732125217588,0.01970211,94112.0,94070.0,0.123]
[1732125217824,0.01970211,94111.0,94072.0,0.123]
[1732125218052,0.01970211,94110.0,94075.0,0.033]
[1732125218290,0.00111123,94109.0,94077.0,0.123]
[1732125218511,0.02081031,94119.0,94079.0,0.123]
[1732125218732,0.00111123,94119.0,94080.0,0.13687563]
[1732125218965,0.00111123,94119.0,94081.0,0.123]
[1732125219194,0.00111123,94119.0,94083.0,0.123]
[1732125219431,0.00111123,94119.0,94085.0,0.123]
[1732125219667,0.01970038,94118.0,94088.0,0.023]
[1732125219899,0.00111123,94117.0,94089.0,0.10711512]
[1732125220131,0.00111123,94117.0,94090.0,0.02301151]
[1732125220365,0.00111123,94117.0,94091.0,0.10711512]
[1732125220606,0.00111123,94117.0,94087.0,0.1]
[1732125220607,0.12682071,94116.0,94087.0,0.1]
[1732125220913,0.12682071,94116.0,94073.0,0.00199002]
[1732125220914,0.11261682,94115.0,94073.0,0.00199002]
[1732125221166,0.12682071,94114.0,94075.0,0.1]
[1732125221399,0.02081682,94113.0,94077.0,0.1]
[1732125221625,0.12682071,94112.0,94079.0,0.1]
[1732125221842,0.02081682,94111.0,94079.0,0.1]
[1732125222057,0.12682071,94110.0,94079.0,0.1]
[1732125222285,0.02081682,94109.0,94079.0,0.1]
[1732125222516,0.23251512,94108.0,94080.0,0.0114369]
[1732125222749,0.00111123,94107.0,94080.0,0.0114369]
[1732125223003,0.10711512,94106.0,94073.0,0.00199002]
[1732125223226,0.05239187,94105.0,94073.0,0.00199002]
[1732125223468,0.14867344,94104.0,94073.0,0.00199002]
[1732125223709,0.00111123,94103.0,94073.0,0.00199002]
[1732125223943,0.0494,94099.0,94073.0,0.00199002]
[1732125224169,0.01,94095.0,94073.0,0.00199002]
[1732125224413,0.12794867,94094.0,94073.0,0.00199002]
[1732125224644,0.01972232,94093.0,94073.0,0.00199002]
[1732125224902,0.10755832,94098.0,94073.0,0.00199002]
[1732125224903,0.15950699,94092.0,94073.0,0.00199002]
[1732125225148,0.05128064,94091.0,94073.0,0.00199002]
[1732125225363,0.05239187,94090.0,94073.0,0.00199002]
[1732125225601,0.05128064,94089.0,94060.0,0.023]
[1732125225827,0.00111123,94088.0,94067.0,0.10711512]
[1732125226055,0.00111123,94088.0,94068.0,0.01088247]
[1732125226056,0.05132231,94087.0,94068.0,0.01088247]
[1732125226285,0.00111123,94086.0,94069.0,0.10711512]
[1732125226493,0.01973732,94085.0,94069.0,0.10711512]
[1732125226699,0.01973732,94084.0,94070.0,0.01088247]
[1732125226918,0.01973732,94083.0,94071.0,0.10711512]
[1732125227154,0.01973732,94083.0,94071.0,0.10817803]
[1732125227407,0.01973732,94083.0,94071.0,0.10711512]
[1732125227635,0.01973732,94082.0,94072.0,0.01088247]
[1732125227873,0.01973732,94081.0,94072.0,0.01088247]
[1732125228089,0.01973732,94080.0,94073.0,0.01197072]
[1732125228299,0.01973732,94079.0,94073.0,0.01197072]
[1732125228522,0.01973732,94079.0,94071.0,0.10711512]
[1732125228779,0.01973732,94078.0,94060.0,0.023]
[1732125228992,0.01973732,94078.0,94067.0,0.1]
[1732125228993,0.1319,94077.0,94067.0,0.1]
[1732125229238,0.01976826,94077.0,94068.0,0.02088247]
[1732125229446,0.01976826,94076.0,94068.0,0.02088247]
[1732125229659,0.0514107,94075.0,94069.0,0.02297072]
[1732125229881,0.01976826,94075.0,94069.0,0.02297072]
[1732125230092,0.01976826,94075.0,94067.0,0.1]
[1732125230093,0.01976826,94075.0,94070.0,0.02317954]
[1732125230298,0.01976826,94074.0,94070.0,0.02317954]
[1732125230514,0.05142716,94073.0,94070.0,0.02317954]
[1732125230734,0.01976826,94072.0,94071.0,0.02320043]
[1732125230966,0.00976826,94072.0,94071.0,0.02320043]
[1732125231217,0.04142788,94072.0,94071.0,0.02320043]
[1732125232069,0.00976826,94072.0,94071.0,0.02320043]
[1732125232281,0.04143917,94072.0,94071.0,0.02320043]
[1732125232514,0.04144583,94072.0,94071.0,0.02320043]
[1732125232751,0.03167757,94072.0,94071.0,0.02320043]
[1732125234700,0.03167757,94072.0,94071.0,0.13031555]
[1732125234937,0.0499,94089.0,94071.0,0.13031555]
[1732125235203,0.0499,94089.0,94066.0,0.0017096]
[1732125235204,0.04493672,94088.0,94072.0,0.10817802]
[1732125235440,0.04604795,94087.0,94073.0,0.01098876]
[1732125235673,0.0824,94096.0,94073.0,0.01098876]
[1732125235674,0.04493672,94086.0,94075.0,0.1]
[1732125235922,0.03167998,94085.0,94078.0,0.023]
[1732125236140,0.00111123,94108.0,94080.0,0.123]
[1732125236362,0.0824,94109.0,94082.0,0.123]
[1732125236619,0.03168538,94113.0,94081.0,0.10817781]
[1732125236620,0.03168538,94113.0,94084.0,0.123]
[1732125236853,0.04948305,94113.0,94086.0,0.123]
[1732125237084,0.04948305,94113.0,94089.0,0.023]
[1732125237316,0.01779767,94113.0,94091.0,0.123]
[1732125237549,0.01779767,94113.0,94091.0,0.23011512]
[1732125238722,0.00111123,94112.0,94091.0,0.23011512]
[1732125239184,0.01779767,94113.0,94091.0,0.23011512]
[1732125239415,0.01779767,94113.0,94091.0,0.24011512]
[1732125239639,0.01779767,94113.0,94091.0,0.26412663]
[1732125239882,0.03166685,94120.0,94091.0,0.26412663]
[1732125240112,0.03166685,94123.0,94091.0,0.35002663]
[1732125240364,0.01815195,94118.0,94091.0,0.35002663]
[1732125241066,0.08066685,94127.0,94091.0,0.35002663]
[1732125241286,0.01831547,94120.0,94091.0,0.35002663]
[1732125242490,0.00111123,94126.0,94091.0,0.35002663]
[1732125242758,0.03134197,94125.0,94091.0,0.23112663]
[1732125243044,0.01436297,94124.0,94091.0,0.23112663]
[1732125243305,0.01325174,94123.0,94091.0,0.23112663]
[1732125243540,0.01860595,94119.0,94091.0,0.25112663]
[1732125243793,0.031648,94118.0,94091.0,0.25112663]
[1732125244043,0.03165394,94133.0,94091.0,0.33322663]
[1732125244327,0.03164548,94127.0,94091.0,0.40542663]
[1732125244553,0.03164548,94127.0,94104.0,0.01]
[1732125244789,0.01977194,94126.0,94106.0,0.123]
[1732125245029,0.21905895,94137.0,94108.0,0.023]
[1732125245030,0.01977194,94125.0,94108.0,0.023]
[1732125245268,0.1232,94137.0,94110.0,0.123]
[1732125245497,0.1232,94137.0,94107.0,0.0133]
[1732125245498,0.0513823,94136.0,94112.0,0.123]
[1732125245723,0.0513823,94136.0,94103.0,0.01]
[1732125245724,0.05249353,94135.0,94114.0,0.123]
[1732125245947,0.0513823,94134.0,94116.0,0.123]
[1732125246174,0.0513823,94133.0,94118.0,0.123]
[1732125246417,0.14108321,94137.0,94121.0,0.023]
[1732125246418,0.01976242,94132.0,94121.0,0.023]
[1732125246671,0.01976242,94132.0,94124.0,0.023]
[1732125246672,0.01975474,94132.0,94124.0,0.023]
[1732125246916,0.1232,94137.0,94125.0,0.14129516]
[1732125247147,0.01975437,94136.0,94125.0,0.10817742]
[1732125247388,0.1232,94137.0,94125.0,0.10711512]
[1732125247389,0.01975437,94135.0,94125.0,0.10711512]
[1732125247619,0.1232,94137.0,94126.0,0.02311774]
[1732125247849,0.1232,94137.0,94126.0,0.13023286]
[1732125248074,0.1232,94137.0,94126.0,0.10711512]
[1732125248993,0.01973787,94136.0,94126.0,0.10711512]
[1732125249221,0.1232,94137.0,94126.0,0.10711512]
[1732125250350,0.1232,94137.0,94126.0,0.10817741]
[1732125250812,0.1232,94137.0,94127.0,0.01311774]
[1732125250813,0.0809,94148.0,94128.0,0.123]
[1732125251033,0.0809,94148.0,94129.0,0.10711512]
[1732125251034,0.01856887,94143.0,94129.0,0.10711512]
[1732125251266,0.0809,94148.0,94129.0,0.10711512]
[1732125252226,0.0809,94148.0,94119.0,0.01]
[1732125252457,0.0809,94148.0,94117.0,0.01187772]
[1732125252458,0.10711512,94147.0,94117.0,0.01187772]
[1732125252690,0.10711512,94147.0,94099.0,0.01]
[1732125252691,0.0454,94146.0,94108.0,0.01]
[1732125252910,0.0454,94146.0,94099.0,0.01]
[1732125252911,0.10844311,94145.0,94110.0,0.1]
[1732125253128,0.00132799,94145.0,94112.0,0.1]
[1732125253381,0.00132799,94145.0,94114.0,0.1]
[1732125253597,0.00132799,94145.0,94116.0,0.1]
[1732125253809,0.00132799,94145.0,94117.0,0.10711512]
[1732125254032,0.15251512,94146.0,94118.0,0.12071151]
[1732125254033,0.10711512,94144.0,94118.0,0.12071151]
[1732125254255,0.10711512,94144.0,94094.0,0.002]
[1732125254256,0.0822,94135.0,94101.0,0.10711512]
[1732125254468,0.10844326,94134.0,94106.0,0.01146365]
[1732125254708,0.0822,94133.0,94107.0,0.01185788]
[1732125254965,0.10844324,94132.0,94107.0,0.01185788]
[1732125255182,0.12815624,94132.0,94107.0,0.01185788]
[1732125255435,0.10844324,94132.0,94108.0,0.0118973]
[1732125255667,0.10844324,94132.0,94098.0,0.10711512]
[1732125255904,0.10844324,94132.0,94099.0,0.1]
[1732125256125,0.10844324,94132.0,94100.0,0.02350376]
[1732125256342,0.10844324,94132.0,94099.0,0.20711512]
[1732125256587,0.10844324,94132.0,94100.0,0.1]
[1732125256808,0.0822,94133.0,94101.0,0.023]
[1732125257070,0.0822,94133.0,94103.0,0.023]
[1732125257333,0.00132802,94132.0,94104.0,0.10711512]
[1732125258700,0.00132802,94132.0,94105.0,0.1]
[1732125258916,0.00132802,94132.0,94106.0,0.10711512]
[1732125259147,0.00132802,94132.0,94107.0,0.12528266]
[1732125260074,0.1309,94130.0,94107.0,0.12528266]
[1732125260281,0.0825,94128.0,94087.0,0.01]
[1732125260491,0.01848099,94133.0,94070.0,0.0485567]
[1732125260492,0.0825,94126.0,94088.0,0.11636512]
[1732125260705,0.0825,94124.0,94088.0,0.10711512]
[1732125260935,0.10844335,94123.0,94089.0,0.01163651]
[1732125261159,0.10844335,94123.0,94090.0,0.10711512]
[1732125261609,0.10844335,94123.0,94086.0,0.01]
[1732125261610,0.1317,94122.0,94086.0,0.01]
[1732125261836,0.10844343,94121.0,94087.0,0.1]
[1732125262317,0.0833,94120.0,94087.0,0.1]
[1732125262534,0.0466,94118.0,94088.0,0.01181475]
[1732125262748,0.12820011,94117.0,94088.0,0.01181475]
[1732125262978,0.0466,94115.0,94088.0,0.01181475]
[1732125263200,0.10711512,94117.0,94070.0,0.0008567]
[1732125263201,0.01,94105.0,94070.0,0.0008567]
[1732125263417,0.0764,94101.0,94071.0,0.02389481]
[1732125263671,0.0482,94102.0,94071.0,0.02389481]
[1732125263672,0.0764,94099.0,94071.0,0.02389481]
[1732125263881,0.17640048,94098.0,94072.0,0.01210138]
[1732125264101,0.09615666,94097.0,94072.0,0.01210138]
[1732125264344,0.10844382,94096.0,94070.0,0.0008567]
[1732125264553,0.09655666,94095.0,94070.0,0.0008567]
[1732125264797,0.12820048,94094.0,94070.0,0.0008567]
[1732125265039,0.01975666,94093.0,94070.0,0.01111333]
[1732125265253,0.12820048,94092.0,94070.0,0.0008567]
[1732125265471,0.01975666,94091.0,94070.0,0.0008567]
[1732125265700,0.0768,94095.0,94071.0,0.0008567]
[1732125265701,0.12820048,94090.0,94071.0,0.0008567]
[1732125265919,0.14888539,94089.0,94071.0,0.0008567]
[1732125266141,0.12687178,94088.0,94071.0,0.0008567]
[1732125266368,0.02108539,94087.0,94071.0,0.0008567]
[1732125266588,0.15851812,94086.0,94071.0,0.0008567]
[1732125266804,0.09948549,94085.0,94071.0,0.0008567]
[1732125267028,0.15851812,94084.0,94071.0,0.0008567]
[1732125267247,0.0458,94082.0,94066.0,0.00144274]
[1732125267493,0.12820061,94081.0,94066.0,0.00144274]
[1732125267728,0.01975666,94080.0,94066.0,0.00144274]
[1732125267950,0.10844395,94079.0,94053.0,0.00133888]
[1732125268201,0.01976536,94078.0,94055.0,0.1]
[1732125268419,0.02109419,94077.0,94056.0,0.10738233]
[1732125268638,0.01976536,94076.0,94056.0,0.10738233]
[1732125268856,0.00132883,94075.0,94056.0,0.10738233]
[1732125269076,0.00132883,94075.0,94050.0,0.86625528]
[1732125269077,0.00132883,94075.0,94057.0,0.10556172]
[1732125269953,0.00132883,94074.0,94057.0,0.10556172]
[1732125270180,0.00132883,94077.0,94058.0,0.01055617]
[1732125270641,0.01973691,94076.0,94058.0,0.00508182]
[1732125270861,0.10711512,94078.0,94058.0,0.00508182]
[1732125270862,0.00132883,94075.0,94059.0,0.01106435]
[1732125271858,0.00132883,94074.0,94059.0,0.01106435]
[1732125272074,0.00132883,94077.0,94060.0,0.02217079]
[1732125272295,0.00132883,94077.0,94059.0,0.01106435]
[1732125272511,0.00132883,94077.0,94051.0,0.1]
[1732125272512,0.00132883,94081.0,94052.0,0.023]
[1732125272727,0.00132883,94081.0,94054.0,0.023]
[1732125272958,0.00132883,94081.0,94056.0,0.1]
[1732125274069,0.00132883,94081.0,94056.0,0.09452565]
[1732125274285,0.01971788,94080.0,94056.0,0.09452565]
[1732125274534,0.10844389,94079.0,94056.0,0.09452565]
[1732125274771,0.045,94077.0,94050.0,0.86625528]
[1732125274993,0.0822,94074.0,94050.0,0.86625528]
[1732125275226,0.12815758,94073.0,94050.0,0.86625528]
[1732125275471,0.01971341,94072.0,94051.0,0.08662553]
[1732125275697,0.12815758,94071.0,94051.0,0.08662553]
[1732125275910,0.01,94065.0,94050.0,0.84823491]
[1732125276134,0.124,94062.0,94050.0,0.84823491]
[1732125276351,0.124,94060.0,94050.0,0.84823491]
[1732125276611,0.124,94060.0,94051.0,0.08482349]
[1732125276612,0.12815771,94059.0,94051.0,0.08482349]
[1732125276860,0.01971341,94058.0,94051.0,0.08482349]
[1732125277116,0.124,94060.0,94052.0,0.09330584]
[1732125277611,0.00132892,94059.0,94052.0,0.09330584]
[1732125278092,0.00132892,94059.0,94050.0,0.84823491]
[1732125278093,0.10711512,94058.0,94050.0,0.84823491]
[1732125278335,0.09672219,94057.0,94050.0,0.84823491]
[1732125278581,0.125,94055.0,94050.0,0.84823491]
[1732125278815,0.12813737,94054.0,94050.0,0.84823491]
[1732125279068,0.01969303,94053.0,94050.0,0.84823491]
[1732125279305,0.10844434,94054.0,94050.0,0.84823491]
[1732125279306,0.10711512,94052.0,94050.0,0.84823491]
[1732125279539,0.10711512,94052.0,94050.0,0.84909171]
[1732125279777,0.01968247,94051.0,94050.0,0.84909171]
[1732125280009,0.12679759,94051.0,94050.0,0.84909171]
[1732125281023,0.125,94055.0,94050.0,0.84909171]
[1732125281024,0.125,94055.0,94050.0,0.93400088]
[1732125281929,0.00132901,94071.0,94050.0,0.93400088]
[1732125281930,0.0813,94068.0,94050.0,0.93400088]
[1732125282146,0.019684,94067.0,94051.0,0.09340009]
[1732125282361,0.0813,94068.0,94051.0,0.19340009]
[1732125282362,0.019684,94066.0,94051.0,0.19340009]
[1732125282607,0.0813,94068.0,94051.0,0.19340009]
[1732125282608,0.019684,94065.0,94052.0,0.10424918]
[1732125282961,0.0813,94068.0,94052.0,0.10424918]
[1732125282962,0.01969058,94064.0,94052.0,0.10424918]
[1732125283282,0.01969058,94063.0,94052.0,0.10424918]
[1732125283516,0.01969058,94062.0,94053.0,0.10533409]
[1732125283751,0.0813,94068.0,94054.0,0.10544258]
[1732125284017,0.01969412,94067.0,94054.0,0.10544258]
[1732125284260,0.01969412,94066.0,94054.0,0.10544258]
[1732125284502,0.0813,94068.0,94055.0,0.10728021]
[1732125284980,0.0823,94078.0,94056.0,0.13011512]
[1732125285223,0.01970219,94074.0,94058.0,0.023]
[1732125285461,0.01970219,94073.0,94060.0,0.023]
[1732125285691,0.0455,94083.0,94062.0,0.123]
[1732125285917,0.0455,94083.0,94064.0,0.123]
[1732125286142,0.0455,94083.0,94064.0,0.22896316]
[1732125286373,0.0823,94089.0,94066.0,0.023]
[1732125286866,0.00132861,94088.0,94066.0,0.023]
[1732125288012,0.0823,94089.0,94066.0,0.023]
[1732125288232,0.0823,94089.0,94066.0,0.123]
[1732125288916,0.00132861,94088.0,94066.0,0.14131072]
[1732125289142,0.01973516,94074.0,94066.0,0.14131072]
[1732125289409,0.01973516,94073.0,94066.0,0.14131072]
[1732125289655,0.01973516,94072.0,94068.0,0.023]
[1732125289885,0.00132864,94088.0,94068.0,0.023]
[1732125290113,0.00132864,94088.0,94056.0,0.11563719]
[1732125290114,0.01975035,94071.0,94069.0,0.02985581]
[1732125290345,0.00132864,94088.0,94058.0,0.023]
[1732125290573,0.00132864,94088.0,94061.0,0.023]
[1732125290574,0.05138525,94074.0,94061.0,0.023]
[1732125290790,0.18441404,94073.0,94060.0,0.1]